[Event "Saint Louis Norm Congress-GM 2022"]
[Site "Saint Louis"]
[Date "2022.05.19"]
[Round "1.5"]
[White "Kavutskiy, Konstantin"]
[Black "Schitco, Ivan"]
[Result "1/2-1/2"]
[ECO "A21"]
[WhiteElo "2407"]
[BlackElo "2484"]
[Annotator "TA"]
[PlyCount "120"]
[EventDate "2022.05.20"]
[EventType "tourn"]
[EventCountry "USA"]
[SourceTitle "playchess.com"]
[Source "ChessBase"]
[SourceQuality "1"]
[TimeControl "5400+30"]

{[%evp 11,120,0,0,0,0,0,0,0,0,0,0,0,0,0,0,0,0,0,0,0,23,6,14,0,0,0,0,0,0,0,0,0,0,0,27,44,49,36,31,12,22,0,0,0,0,0,0,0,0,0,11,-43,-50,-45,-46,-45,-43,-50,-50,-62,-43,-52,-52,-94,-94,-94,-94,-94,-94,-99,-99,-99,-99,-99,-99,-99,-64,-99,-99,-99,-99,-99,-99,-99,-94,-95,-94,-94,-94,-94,-10,-129,-32,-26,-25,-32,-8,-8,-8,-8,-8,-8,-8,-8,0,0,0,0,0,0,0]} 1. d4 {[%emt 0:00:03]} d6 {[%emt 0:00:14]} 2. c4 {[%emt 0:03:34]} e5 {[%emt 0:00:27]} 3. Nc3 {[%emt 0:00:19]} exd4 {[%emt 0:02:38]} 4. Qxd4 {[%emt 0:00:08]} Nc6 {[%emt 0:00:21]} 5. Qd2 {[%emt 0:00:22]} Nf6 {[%emt 0:02:31]} 6. b3 {[%emt 0:02:10]} a5 {[%emt 0:06:04][%cal Oa5a4]} 7. Bb2 {[%emt 0:01:11] A21: English Opening: 1...e5 2 Nc3.} a4 {[%emt 0:05:19]} 8. Rd1 {[%emt 0:02:24]} axb3 {[%emt 0:05:53]} 9. axb3 {[%emt 0:00:08]} g6 {[%emt 0:08:12]} 10. g3 {[%emt 0:03:12]} Bg7 {[%emt 0:02:04]} 11. Bg2 {[%emt 0:01:18]} O-O {[%emt 0:06:16]} 12. Nf3 {[%emt 0:03:28]} Nd7 {[%emt 0:14:34] [#]} 13. Nd5 $146 {[%emt 0:19:02]} ({Predecessor:} 13. Na4 Bxb2 14. Qxb2 Qf6 15. Qxf6 Nxf6 16. Nc3 Re8 17. O-O Bg4 18. h3 Bf5 19. e3 Be4 20. Ra1 Rec8 21. Nb5 Ne8 22. Nc3 Nf6 23. Nb5 Ne8 24. Nc3 Nf6 {½-½ (24) Nguyen,A (2484)-Nihal,S (2578) Sharjah 2019}) 13... Ra2 {[%emt 0:04:34]} 14. Nc3 {[%emt 0:00:34]} Ra8 {[%emt 0:08:37]} 15. Nd5 {[%emt 0:03:18]} Nce5 {[%emt 0:04:35]} (15... Ra2 $5 {[%cal Ra2b2]} 16. Nc3 Rxb2 17. Qxb2 Nc5 $11) 16. O-O {[%emt 0:06:28]} c6 {[%emt 0:03:21]} 17. Nc3 {[%emt 0:05:03]} Nxf3+ {[%emt 0:04:28]} 18. exf3 {[%emt 0:03:43]} Qb6 {[%emt 0:02:17]} 19. Ne4 {[%emt 0:12:36] [#] Bxg7 is the strong threat.} (19. Qxd6 Qxb3 20. Ra1 (20. Qd2 $2 Nb6 $19) 20... Rb8 $17) 19... Ra2 {[%emt 0:01:43]} 20. Nc3 {[%emt 0:02:50]} Ra8 {[%emt 0:01:05]} 21. Ne4 {[%emt 0:01:13] Strongly threatening Bxg7.} ({But not} 21. Qxd6 Qxb3 22. Ra1 (22. Qd2 $2 Nb6 $19) 22... Rb8 $17) 21... Ra2 {[%emt 0:02:09]} 22. Nc3 {[%emt 0:00:37]} Qxb3 {[%emt 0:03:55]} 23. Nxa2 {[%emt 0:00:20]} Qxb2 {[%emt 0:00:20]} ({Less strong is} 23... Bxb2 24. Rb1 Qxa2 25. Rxb2 Qxc4 26. Qxd6 $16) 24. Qxb2 {[%emt 0:12:30]} Bxb2 {[%emt 0:00:12]} 25. Rxd6 {[%emt 0:00:35]} Nb6 $1 {[%emt 0:01:54]} 26. Rfd1 {[%emt 0:00:17]} (26. c5 $5 {[%cal Rc5b6]} Na4 27. Rd2 $11) 26... Nxc4 {[%emt 0:01:15]} 27. Rd8 {[%emt 0:00:12] [#] Hoping for Rxf8+.} Bf6 {[%emt 0:01:15]} 28. Rxf8+ {[%emt 0:00:39]} Kxf8 {[%emt 0:00:02]} 29. f4 {[%emt 0:01:09]} Ke7 {[%emt 0:01:36]} 30. Nb4 {[%emt 0:00:42]} Bf5 {[%emt 0:01:49]} 31. Nxc6+ {[%emt 0:06:52]} bxc6 $15 {[%emt 0:00:13]} 32. Bxc6 {[%emt 0:00:07]} Nb2 {[%emt 0:03:44]} 33. Re1+ {[%emt 0:00:25]} Kd6 {[%emt 0:00:13]} 34. Bb5 {[%emt 0:02:15]} Kc5 {[%emt 0:01:04]} 35. Bf1 {[%emt 0:00:10]} Nd3 {[%emt 0:01:48]} 36. Bxd3 {[%emt 0:02:20]} Bxd3 {[%emt 0:00:02]} 37. Re8 {[%emt 0:00:11]} Bf5 {[%emt 0:00:15]} 38. Ra8 {[%emt 0:01:06]} Be6 {[%emt 0:00:08]} 39. Ra4 {[%emt 0:01:48]} Bd4 {[%emt 0:00:19]} 40. Ra5+ {[%emt 0:01:51]} Kc4 {[%emt 0:00:08]} 41. Ra3 {[%emt 0:00:27]} Bc3 {[%emt 0:00:33]} 42. Kf1 {[%emt 0:00:53]} Kd3 {[%emt 0:00:02]} 43. Kg2 {[%emt 0:01:25]} Bd5+ {[%emt 0:00:11]} 44. Kf1 {[%emt 0:00:09]} Kd2 {[%emt 0:01:00]} 45. Ra7 {[%emt 0:00:48] Black must now prevent Rd7.} Be6 {[%emt 0:00:29] Prevents Rd7+.} 46. Ra4 {[%emt 0:01:11]} Bh3+ {[%emt 0:00:42]} 47. Kg1 {[%emt 0:00:02]} h5 {[%emt 0:00:42]} 48. Ra7 {[%emt 0:00:43]} Bd4 {[%emt 0:01:12]} 49. Ra4 {[%emt 0:01:01]} Kd3 {[%emt 0:00:35]} 50. Rb4 {[%emt 0:00:16]} h4 {[%emt 0:01:27]} (50... Bd7 $17 51. Kg2 Be6) 51. Ra4 {[%emt 0:00:25]} (51. gxh4 $11 Ke4 52. Ra4) 51... Bg4 {[%emt 0:00:29]} (51... Bd7 $17 52. Rb4 h3) 52. gxh4 {[%emt 0:01:04]} Bf3 {[%emt 0:00:57]} 53. Kf1 {[%emt 0:00:30]} Bf6 {[%emt 0:00:24][%mdl 1024] Black has compensation. This bishop pair is nice.} 54. Ra7 {[%emt 0:00:49] The position is equal.} Bd5 {[%emt 0:00:13]} 55. f5 {[%emt 0:00:18]} Bxh4 {[%emt 0:00:55]} 56. fxg6 {[%emt 0:00:24]} fxg6 {[%emt 0:00:01][%cal Bf7g6,Bg6g5,Bg5f4][%mdl 32]} 57. Ra3+ {[%emt 0:00:23]} Kd2 {[%emt 0:00:59]} 58. Ra4 {[%emt 0:00:27]} Bf6 {[%emt 0:00:09]} 59. Rg4 {[%emt 0:00:26]} g5 {[%emt 0:00:42]} 60. f4 {[%emt 0:00:25]} gxf4 {[%emt 0:00:16] Weighted Error Value: White=0.10 (very precise) /Black=0.10 (very precise)} 1/2-1/2

[Event "Saint Louis Norm Congress-GM 2022"]
[Site "Saint Louis"]
[Date "2022.05.20"]
[Round "2.1"]
[White "Stearman, Josiah"]
[Black "Schitco, Ivan"]
[Result "1-0"]
[ECO "C41"]
[WhiteElo "2375"]
[BlackElo "2484"]
[Annotator "TA"]
[PlyCount "115"]
[EventDate "2022.05.20"]
[EventType "tourn"]
[EventCountry "USA"]
[SourceTitle "playchess.com"]
[Source "ChessBase"]
[SourceQuality "1"]
[TimeControl "5400+30"]

{[%evp 16,115,53,44,33,12,12,12,14,14,47,14,8,23,35,33,44,29,47,0,0,7,20,-18,48,39,41,33,61,85,102,102,133,95,193,177,277,252,322,300,319,323,285,232,233,243,240,232,225,231,230,181,182,174,176,170,215,198,218,196,226,151,154,141,222,211,206,206,208,208,257,219,189,219,420,436,425,414,410,406,534,358,821,814,779,716,29972,29973,29972,29971,12837,29969,29989,29986,29986,29987,29987,29988,29992,29993,29993,29994]} 1. d4 {[%emt 0:00:03]} d6 {[%emt 0:00:22]} 2. e4 {[%emt 0:00:06]} Nf6 {[%emt 0:00:13]} 3. Nc3 {[%emt 0:00:04]} e5 {[%emt 0:00:42]} 4. Nf3 {[%emt 0:00:07]} Nbd7 {[%emt 0:00:06]} 5. Bc4 {[%emt 0:00:06]} Be7 {[%emt 0:00:26]} 6. O-O {[%emt 0:00:22]} O-O {[%emt 0:00:32]} 7. Re1 {[%emt 0:00:06]} c6 {[%emt 0:00:26]} 8. a4 {[%emt 0:00:05]} h6 {[%emt 0:00:30] is now debated instead of 8...b6.} 9. a5 {[%emt 0:00:33]} Rb8 {[%emt 0:01:42] C41: Philidor Defence.} 10. h3 {[%emt 0:02:06]} b5 {[%emt 0:05:12]} 11. axb6 {[%emt 0:01:12]} axb6 {[%emt 0:00:09] The position is equal.} 12. b4 {[%emt 0:09:36]} b5 {[%emt 0:00:19] [#]} 13. Bf1 $146 {[%emt 0:00:36]} ({Predecessor:} 13. Bb3 Qc7 14. Be3 Re8 15. Qd2 exd4 16. Bxd4 Ne5 17. Qf4 Nh5 18. Qe3 Ng6 19. Qd2 {½-½ (58) Dedina,M (2254)-Kratochvil,J (2151) ICCF email 2015}) 13... Bb7 {[%emt 0:09:08]} 14. Be3 {[%emt 0:03:35]} Ra8 {[%emt 0:08:22]} 15. Qd2 $1 {[%emt 0:01:43]} Rxa1 {[%emt 0:11:39]} 16. Rxa1 {[%emt 0:00:05]} Qb8 {[%emt 0:12:09]} 17. Nh4 {[%emt 0:13:27] Hoping for Nf5.} d5 {[%emt 0:10:11]} 18. dxe5 {[%emt 0:01:28]} Nxe5 {[%emt 0:04:23]} 19. Ba7 {[%emt 0:04:03]} (19. Bxh6 $5 Nxe4 20. Nxe4 Bxh4 21. Bg5 $11) 19... Qc7 {[%emt 0:04:58]} (19... Qd8 $11) 20. exd5 $14 {[%emt 0:05:24]} Bxb4 {[%emt 0:17:49] [#]} 21. Nxb5 $1 {[%emt 0:00:29]} cxb5 {[%emt 0:02:08]} (21... Bxd2 22. Nxc7) 22. Qxb4 {[%emt 0:00:07]} Bxd5 {[%emt 0:01:56]} 23. Bd4 {[%emt 0:01:01]} (23. Bxb5 Qxc2 24. Ba4 Qc7 $14) 23... Ned7 {[%emt 0:05:20]} 24. Nf5 {[%emt 0:01:43]} (24. Qxb5 $6 Qf4 25. Nf3 (25. Ra4 Qxh4 26. Bc5 Qxa4 $17) 25... Bxf3 $14) 24... Qf4 {[%emt 0:03:03]} (24... Bc4 $16) 25. Ne7+ $18 {[%emt 0:00:05]} Kh8 {[%emt 0:00:29]} (25... Kh7 $142 26. Nxd5 (26. Bxb5 Rb8 $16) 26... Nxd5) 26. g3 {[%emt 0:01:03]} (26. Bxb5 $6 Rb8 $18) 26... Qe4 {[%emt 0:00:39][%csl Gd5][%cal Re4h1]} 27. Nxd5 {[%emt 0:00:06] Active counter play!} Qxd5 {[%emt 0:00:01]} 28. Bxf6 {[%emt 0:01:40]} (28. Bxb5 Rb8 $16) 28... gxf6 {[%emt 0:00:01]} 29. Qf4 {[%emt 0:02:20]} ({Not} 29. Bxb5 Rb8 $16) (29. Qxb5 $6 Qxb5 30. Bxb5 Nc5 $18) 29... Qg5 {[%emt 0:00:13] [#]} 30. Qd6 {[%emt 0:00:17]} ({Don't play} 30. Qxg5 $6 fxg5 31. Bxb5 Ne5 $16) 30... Qe5 {[%emt 0:00:14]} 31. Rd1 {[%emt 0:00:41]} Qxd6 {[%emt 0:00:38]} 32. Rxd6 {[%emt 0:00:01][%mdl 4096] Endgame KRB-KRN} Ne5 {[%emt 0:00:27]} 33. Bxb5 {[%emt 0:00:22]} Nf3+ {[%emt 0:01:17]} 34. Kf1 {[%emt 0:00:19]} Kg7 {[%emt 0:00:04]} 35. c4 {[%emt 0:01:16]} Rc8 {[%emt 0:00:15]} 36. Ke2 {[%emt 0:02:48]} Ng5 {[%emt 0:00:03]} 37. Bc6 {[%emt 0:01:59]} f5 {[%emt 0:01:19]} 38. Bd5 {[%emt 0:01:20]} Re8+ {[%emt 0:00:14]} 39. Kf1 {[%emt 0:00:15]} f4 {[%emt 0:00:50]} (39... Re7 $16 40. Rc6 Ne6) 40. h4 {[%emt 0:03:28]} ({Don't do} 40. gxf4 $6 Nxh3 41. Rd7 Rf8 $16) 40... Ne4 {[%emt 0:00:07] [#]} 41. Rd7 {[%emt 0:00:22]} fxg3 {[%emt 0:01:11]} 42. Rxf7+ {[%emt 0:02:02]} Kh8 {[%emt 0:01:03]} 43. f3 {[%emt 0:00:05]} Nc3 {[%emt 0:00:16]} 44. Kg2 {[%emt 0:00:26]} Re5 $2 {[%emt 0:00:12]} (44... Ne2 {keeps fighting.} 45. f4 Rg8) 45. f4 {[%emt 0:01:35]} Re3 {[%emt 0:00:19]} 46. Bf3 {[%emt 0:00:35] Threatens to win with c5.} Kg8 {[%emt 0:00:59]} 47. Ra7 {[%emt 0:00:51]} Ne2 {[%emt 0:00:51]} 48. f5 {[%emt 0:02:43] And now c5 would win.} Nd4 $2 {[%emt 0:00:32]} (48... Kf8 49. c5 Nd4) 49. Bd5+ {[%emt 0:00:04]} Kf8 {[%emt 0:00:17]} 50. f6 {[%emt 0:00:06] Ra8+ is the strong threat.} Nf5 {[%emt 0:00:08]} 51. f7 {[%emt 0:02:56]} Re2+ {[%emt 0:00:30]} 52. Kh3 {[%emt 0:01:50]} Rh2+ {[%emt 0:00:35]} 53. Kg4 {[%emt 0:00:01]} Kg7 {[%emt 0:00:54] White mates.} 54. Kxf5 {[%emt 0:01:47]} Rf2+ {[%emt 0:00:15]} 55. Ke5 {[%emt 0:00:05]} g2 {[%emt 0:00:06]} 56. Ra8 {[%emt 0:00:09]} Kg6 {[%emt 0:00:51]} 57. f8=Q {[%emt 0:00:48]} Rxf8 {[%emt 0:00:11]} 58. Rxf8 {[%emt 0:00:14] Weighted Error Value: White=0.12 (very precise) /Black=0.38} 1-0

[Event "Saint Louis Norm Congress-GM 2022"]
[Site "Saint Louis"]
[Date "2022.05.20"]
[Round "2.2"]
[White "Daggupati, Balaji"]
[Black "Kavutskiy, Konstantin"]
[Result "1-0"]
[ECO "B47"]
[WhiteElo "2486"]
[BlackElo "2407"]
[Annotator "TA"]
[PlyCount "101"]
[EventDate "2022.05.20"]
[EventType "tourn"]
[EventCountry "USA"]
[SourceTitle "playchess.com"]
[Source "ChessBase"]
[SourceQuality "1"]
[TimeControl "5400+30"]

{[%evp 24,101,53,39,54,58,62,70,54,64,47,60,79,70,73,75,77,85,81,70,86,54,64,63,45,42,131,51,141,113,231,165,200,207,217,187,211,240,230,201,244,116,118,136,119,117,141,0,147,94,149,155,153,154,156,166,159,77,150,173,147,148,159,177,176,179,175,118,103,104,188,212,368,293,764,746,679,622,801,745]} 1. e4 {[%emt 0:00:03]} c5 {[%emt 0:03:24]} 2. Nf3 {[%emt 0:00:05]} e6 {[%emt 0:00:08]} 3. d4 {[%emt 0:00:04]} cxd4 {[%emt 0:00:17]} 4. Nxd4 {[%emt 0:00:05]} Nc6 {[%emt 0:00:06]} 5. Nc3 {[%emt 0:00:04]} Qc7 {[%emt 0:00:06]} 6. g3 {[%emt 0:00:04]} a6 {[%emt 0:00:11]} 7. Bg2 {[%emt 0:00:06]} Nf6 {[%emt 0:02:44]} 8. O-O {[%emt 0:00:15]} Nxd4 {[%emt 0:00:07]} 9. Qxd4 {[%emt 0:00:05]} Bc5 {[%emt 0:00:08]} 10. Bf4 {[%emt 0:00:28]} d6 {[%emt 0:00:29]} 11. Qd2 {[%emt 0:00:05]} h6 {[%emt 0:00:24]} 12. Rad1 {[%emt 0:00:11][%cal Ba1d1,Bd1d6,Bd6b6][%mdl 32]} e5 {[%emt 0:00:10]} 13. Be3 {[%emt 0:00:05]} Bxe3 {[%emt 0:00:36] B47: Sicilian: Taimanov: 5 Nc3 Qc7 6 f4, 6 g3 and 6 Be2.} 14. fxe3 {[%emt 0:00:19]} Be6 {[%emt 0:00:40]} 15. Qxd6 {[%emt 0:00:16]} Rc8 {[%emt 0:01:19] White is slightly better.} 16. Rf2 {[%emt 0:07:57]} Qxd6 {[%emt 0:09:18]} 17. Rxd6 {[%emt 0:00:53]} Ke7 {[%emt 0:04:58]} 18. Rb6 {[%emt 0:00:28]} Rc7 $1 {[%emt 0:03:02]} 19. Nd5+ {[%emt 0:00:16]} Bxd5 {[%emt 0:00:39]} 20. exd5 {[%emt 0:00:06] aiming for d6+.} Rd8 {[%emt 0:05:30] [#] Inhibits d6+.} 21. c4 $146 {[%emt 0:31:21]} ({Predecessor:} 21. Rd2 Rd6 22. Rb4 Nd7 23. a4 a5 24. Rb5 b6 25. b4 axb4 26. Rxb4 Nc5 27. Bf1 {0-1 (52) Korchmar,V (2450)-Fishbein,M (2099) Chess.com INT 2021}) 21... Rd6 {[%emt 0:14:44]} 22. Rb3 {[%emt 0:01:04]} Rxc4 {[%emt 0:04:34]} 23. Rxb7+ {[%emt 0:00:50]} Ke8 {[%emt 0:00:07]} 24. e4 {[%emt 0:06:55]} a5 {[%emt 0:11:44]} (24... Rd7 $1 $14 25. Rxd7 Kxd7) 25. Bf3 {[%emt 0:07:50]} (25. Rf5 $16) 25... Nd7 {[%emt 0:05:16]} (25... Rd7 $14 26. Rb5 Nxe4) 26. Kg2 $36 {[%emt 0:04:45][%mdl 2048] White has strong initiative.} f6 {[%emt 0:03:25]} (26... a4 $16 {was worth a try.} 27. b3 axb3) 27. Re2 {[%emt 0:02:02]} Kd8 {[%emt 0:03:58]} 28. Ra7 {[%emt 0:03:05]} a4 {[%emt 0:02:23]} 29. Bh5 {[%emt 0:07:03]} Nc5 {[%emt 0:03:01]} 30. Bg6 {[%emt 0:00:09]} ({Don't play} 30. Rxg7 $6 Nxe4 31. Bg6 Nc5 $16) 30... Rd7 {[%emt 0:00:23]} 31. Ra8+ {[%emt 0:00:12]} Ke7 {[%emt 0:01:04]} 32. Rc8 {[%emt 0:00:34]} (32. Re8+ $18 {is more deadly.} Kd6 33. Kf3) 32... Rd8 $16 {[%emt 0:02:25]} 33. Rc7+ {[%emt 0:09:00]} Rd7 {[%emt 0:00:18]} 34. Rc6 {[%emt 0:00:02]} Rd6 {[%emt 0:00:30]} 35. Rc8 {[%emt 0:00:05][%cal Ob2b4] b4! is the strong threat.} Rd8 {[%emt 0:00:07]} 36. d6+ $1 {[%emt 0:00:47]} Rxd6 {[%emt 0:00:21]} 37. b4 $1 {[%emt 0:00:30]} axb3 {[%emt 0:02:41]} 38. axb3 {[%emt 0:00:03][%cal Ba2b3,Bb3b4][%mdl 32]} Rc1 {[%emt 0:00:25] [#]} 39. b4 $1 {[%emt 0:03:41]} Nd3 {[%emt 0:05:12]} 40. Re8+ {[%emt 0:00:05]} Kd7 {[%emt 0:00:07]} 41. Rg8 {[%emt 0:00:45]} Nxb4 {[%emt 0:00:36]} 42. Rxg7+ {[%emt 0:01:40]} Kd8 {[%emt 0:00:17]} 43. Rh7 {[%emt 0:00:34]} Rc2 {[%emt 0:01:55]} 44. Rxc2 {[%emt 0:00:11]} Nxc2 {[%emt 0:00:05] [#]} 45. Rxh6 $18 {[%emt 0:00:05][%mdl 4096] Endgame KRB-KRN} (45. h4 $1 $18) 45... Rd2+ $16 {[%emt 0:02:27]} 46. Kf3 {[%emt 0:00:58] And now h4 would win.} Nd4+ {[%emt 0:01:03]} (46... Rd3+ $16 {is a better defense.} 47. Kg4 Ne3+ 48. Kh5 Nf1) 47. Kg4 $18 {[%emt 0:00:43]} Ke7 $2 {[%emt 0:00:34]} (47... Nc2 {might work better.} 48. h4 Ne3+ 49. Kh5 Rg2) 48. Rh7+ {[%emt 0:01:53]} Kf8 $2 {[%emt 0:00:50]} (48... Kd6 49. h4 Nc2) 49. h4 {[%emt 0:01:18][%cal Bh2h4,Bh4h5][%mdl 32] White is clearly winning.} Kg8 {[%emt 0:00:57]} 50. Rf7 {[%emt 0:03:00]} Rf2 {[%emt 0:00:15]} 51. h5 {[%emt 0:00:35] Weighted Error Value: White=0.16 (very precise) /Black=0.19 (very precise)} 1-0

[Event "Saint Louis Norm Congress-GM 2022"]
[Site "Saint Louis"]
[Date "2022.05.20"]
[Round "2.3"]
[White "Ruiz Castillo, Joshua Daniel"]
[Black "Matviishen, Viktor"]
[Result "1-0"]
[ECO "A01"]
[WhiteElo "2473"]
[BlackElo "2517"]
[Annotator "TA"]
[PlyCount "75"]
[EventDate "2022.05.20"]
[EventType "tourn"]
[EventCountry "USA"]
[SourceTitle "playchess.com"]
[Source "ChessBase"]
[SourceQuality "1"]
[TimeControl "5400+30"]

{[%evp 9,75,0,2,6,8,0,9,12,10,11,13,10,15,9,2,5,2,0,0,-6,-6,0,0,0,0,0,0,0,-9,-38,-33,-49,40,57,101,0,0,0,0,0,0,0,0,0,0,0,0,0,0,-91,-72,-200,174,179,176,163,172,167,157,154,790,766,766,746,746,730,668,541]} 1. b3 {[%emt 0:00:13]} d5 {[%emt 0:00:10]} 2. Bb2 {[%emt 0:00:05]} Bg4 {[%emt 0:00:14]} 3. f3 {[%emt 0:00:05]} Bh5 {[%emt 0:00:07]} 4. h4 {[%emt 0:00:05]} f6 {[%emt 0:01:57]} 5. d4 {[%emt 0:00:54]} Nc6 {[%emt 0:00:14]} 6. e3 {[%emt 0:04:45] A01: Nimzowitsch-Larsen Opening.} e5 {[%emt 0:07:41]} 7. Nc3 {[%emt 0:05:10]} Bf7 {[%emt 0:04:20]} 8. Qd2 {[%emt 0:03:48] The position is equal.} Qd7 {[%emt 0:01:09]} 9. O-O-O {[%emt 0:05:03]} O-O-O {[%emt 0:00:11] [#]} 10. h5 $146 {[%emt 0:00:30]} ({Predecessor:} 10. g4 Kb8 11. Nge2 Bb4 12. a3 Ba5 13. b4 Bb6 14. Kb1 Nge7 15. Na4 Nc8 16. Nc5 {1-0 (43) Liang,J (2409)-Song,E (2383) New York 2022}) 10... Nh6 {[%emt 0:08:05]} 11. Nge2 {[%emt 0:05:07]} Bb4 {[%emt 0:27:06]} 12. a3 {[%emt 0:01:57]} Ba5 {[%emt 0:01:53]} 13. g4 {[%emt 0:14:02]} Rhe8 {[%emt 0:07:00]} 14. Bg2 {[%emt 0:05:35]} Kb8 {[%emt 0:01:04]} 15. Kb1 {[%emt 0:04:12]} Be6 {[%emt 0:06:05]} 16. Qc1 {[%emt 0:06:51]} Qe7 {[%emt 0:02:04]} 17. Rhg1 {[%emt 0:11:11]} Nf7 {[%emt 0:05:17]} 18. Bh1 {[%emt 0:02:16]} g5 {[%emt 0:04:22]} 19. f4 {[%emt 0:09:34]} gxf4 {[%emt 0:11:38]} 20. dxe5 {[%emt 0:00:04]} fxe5 {[%emt 0:05:05]} ({Much worse is} 20... Nfxe5 21. Nxf4 Bxc3 22. Bxc3 $11) (20... f3 $15 21. Bxf3 Nfxe5) 21. exf4 $14 {[%emt 0:04:18] f5 is the strong threat.} d4 {[%emt 0:00:11]} 22. f5 {[%emt 0:04:56]} (22. Na4 $1 $16) 22... dxc3 $11 {[%emt 0:00:38]} 23. Bxc3 {[%emt 0:00:02]} Rxd1 {[%emt 0:03:30]} (23... Bxc3 {is more complex.} 24. fxe6 Rxd1 25. Qxd1 Rd8) 24. Rxd1 {[%emt 0:00:40] Strongly threatening Bxc6.} Bxc3 {[%emt 0:00:23]} 25. Bxc6 {[%emt 0:01:23]} bxc6 {[%emt 0:00:09]} 26. fxe6 {[%emt 0:00:07]} Qxe6 {[%emt 0:00:04] Threatens to win with ...Ba5.} 27. Nxc3 {[%emt 0:00:04]} Qxg4 {[%emt 0:00:13]} 28. Qe3 {[%emt 0:02:37]} Nd6 {[%emt 0:00:51]} 29. Kb2 {[%emt 0:00:04]} (29. Qc5 $11 {remains equal.}) 29... e4 $1 $17 {[%emt 0:02:05]} ({But not} 29... Qxh5 $6 30. Qc5 $11) 30. Rd4 {[%emt 0:01:54]} (30. Qc5 $17 e3 31. Re1) 30... a5 $4 {[%emt 0:00:14][%mdl 8192] [#]} (30... Qxh5 $19 {and life is good for Black. Hoping for ...Qe5.} 31. Rb4+ Ka8) 31. Rxd6 $1 $18 {[%emt 0:02:15][%mdl 576] Deflection} cxd6 {[%emt 0:00:33][%mdl 4096] Endgame KQR-KQN} 32. Qb6+ {[%emt 0:00:01]} Kc8 {[%emt 0:00:07] And now ...Qd7 would win.} 33. Qxc6+ {[%emt 0:00:03]} Kd8 {[%emt 0:00:03]} 34. Nd5 $1 {[%emt 0:00:28][%csl Gd5][%cal Rc6c7][%mdl 1024] White has strong compensation.} ({Reject} 34. Qxd6+ $6 Qd7 35. Qc5 Qc7 36. Qd5+ Kc8 $11) 34... Re6 $2 {[%emt 0:02:15]} (34... Qg7+ $16 35. Ka2 Qf7 36. Qxd6+ Kc8 37. Qc6+ Kb8) 35. Qc7+ {[%emt 0:01:58] White is clearly winning.} Ke8 {[%emt 0:00:01]} 36. Qc8+ {[%emt 0:00:29]} Kf7 {[%emt 0:00:03] [#]} 37. Qd7+ $1 {[%emt 0:00:07][%mdl 64] Skewer} Kf8 {[%emt 0:00:01] [#]} 38. Nc7 $1 {[%emt 0:00:47] Weighted Error Value: White=0.14 (very precise) /Black=0.22 (precise)} 1-0